fUST/lending_fUST_20250108
["ID","MTS","AMOUNT","RATE_DAILY","PERIOD"]
[348086377,1736300851289,-833.31593422,0.00025,2]
[348086378,1736300851311,-1047.19909526,0.00025,2]
[348086379,1736300851334,-30576.77732877,0.00025,7]
[348086380,1736300852099,-4035.01775515,0.00022984,3]
[348086381,1736300852121,-645.65522997,0.00022984,3]
[348086382,1736300852160,-1200.0,0.00024094,2]
[348086383,1736300852182,-110580.62095898,0.00025,7]
[348086384,1736300852204,-6105.49944317,0.00025,2]
[348086385,1736300852225,-10364.0,0.00025,2]
[348086386,1736300852248,-4520.67734573,0.00025,7]
[348086387,1736300853040,-130889.89559377,0.00025,7]
[348086388,1736300853064,-816.38261844,0.00025,2]
[348086389,1736300853088,-421.0,0.00025,2]
[348086390,1736300853115,-1500.0,0.00025,2]
[348086391,1736300853139,-6760.60847566,0.00025,10]
[348086392,1736300853162,-4000.0,0.00025,7]
[348086393,1736300853194,-4311.80213815,0.00025,5]
[348086394,1736300853221,-302570.58126836,0.00025,2]
[348086395,1736300853249,-170.0,0.00025,2]
[348086396,1736300853279,-50000.0,0.00025,30]
[348086397,1736300853304,-4470.0,0.00025,30]
[348086398,1736300853329,-5000.0,0.00025,60]
[348086399,1736300853352,-27811.56031687,0.00025,10]
[348086400,1736300853375,-1897.62981349,0.00025,3]
[348086401,1736300853401,-8584.65970134,0.00025,30]
[348086402,1736300853425,-200.0,0.00025,5]
[348086403,1736300853449,-150.1,0.00025,2]
[348086404,1736300853474,-500.0,0.00025,2]
[348086405,1736300853498,-500.0,0.00025,2]
[348086406,1736300853521,-500.0,0.00025,2]
[348086407,1736300853544,-570.92087303,0.00025,2]
[348086408,1736300853567,-1000.0,0.00025,10]
[348086409,1736300853589,-394.0,0.00025038,2]
[348086410,1736300853612,-10000.0,0.000251,30]
[348086411,1736300853636,-823.0,0.00025155,2]
[348086412,1736300853659,-6369.0,0.00025194,14]
[348086413,1736300853684,-678.84,0.00025204,3]
[348086414,1736300853705,-674.34,0.00025205,3]
[348086415,1736300853727,-1465.22,0.00025205,3]
[348086416,1736300853752,-1835.59,0.00025205,3]
[348086417,1736300853775,-5000.0,0.00025285,4]
[348086418,1736300853797,-5000.0,0.00025285,6]
[348086419,1736300853819,-5000.0,0.00025285,2]
[348086420,1736300853845,-900.0,0.00025469,3]
[348086421,1736300853870,-678.84,0.00025478,3]
[348086422,1736300853891,-674.52845849,0.00025479,3]
[348086423,1736300853914,-1465.24,0.00025479,3]
[348086424,1736300853939,-1835.61995625,0.00025479,3]
[348086425,1736300853960,-1000.0,0.000255,2]
[348086426,1736300853982,-2344.2359399,0.000255,60]
[348086427,1736300854004,-208.98548491,0.000255,60]
[348086428,1736300854025,-1000.80303746,0.00025521,2]
[348086429,1736300854047,-1002.75604182,0.00025521,2]
[348086430,1736300854068,-935.37590263,0.0002556,2]
[348086431,1736300854089,-5000.0,0.000256,2]
[348086432,1736300854110,-15427.37932158,0.000256,2]
[348086433,1736300854136,-152.96,0.000257,31]
[348086434,1736300854160,-152.96,0.000257,31]
[348086435,1736300854185,-152.96,0.000257,31]
[348086436,1736300854210,-152.96,0.000257,31]
[348086437,1736300854234,-152.96,0.000257,31]
[348086438,1736300854259,-152.96,0.000257,31]
[348086439,1736300854285,-152.96,0.000257,31]
[348086440,1736300854311,-152.96,0.000257,31]
[348086441,1736300854337,-152.96,0.000257,31]
[348086442,1736300854362,-152.96,0.000257,31]
[348086443,1736300854388,-152.96,0.000257,31]
[348086444,1736300854413,-152.96,0.000257,31]
[348086445,1736300854439,-152.96,0.000257,31]
[348086446,1736300854465,-152.96,0.000257,31]
[348086447,1736300854490,-152.96,0.000257,31]
[348086448,1736300854516,-152.96,0.000257,31]
[348086449,1736300854543,-152.96,0.000257,31]
[348086450,1736300854569,-152.96,0.000257,31]
[348086451,1736300854603,-152.96,0.000257,31]
[348086452,1736300854630,-152.96,0.000257,31]
[348086453,1736300854653,-678.84,0.00025752,3]
[348086454,1736300854676,-238.0,0.00025775,2]
[348086455,1736300854698,-2132.52384488,0.0002582,2]
[348086456,1736300854719,-500.0,0.00025984,10]
[348086457,1736300854741,-500.0,0.00025984,10]
[348086458,1736300854764,-500.0,0.00025984,10]
[348086459,1736300854788,-500.0,0.00025984,10]
[348086460,1736300854811,-500.0,0.00025984,10]
[348086461,1736300854838,-500.0,0.00025984,10]
[348086462,1736300854860,-500.0,0.00025984,10]
[348086463,1736300854990,-500.0,0.00025984,10]
[348086464,1736300855014,-500.0,0.00025984,10]
[348086465,1736300855035,-500.0,0.00025984,10]
[348086466,1736300855055,-500.0,0.00025984,10]
[348086467,1736300855076,-500.0,0.00025984,10]
[348086468,1736300855113,-787.70639785,0.00025984,10]
[348086469,1736300855135,-500.0,0.00025984,10]
[348086470,1736300855156,-500.0,0.00025984,10]
[348086471,1736300855177,-500.0,0.00025984,10]
[348086472,1736300855197,-500.0,0.00025984,10]
[348086473,1736300855218,-500.0,0.00025984,10]
[348086474,1736300855244,-543.98832038,0.00025984,10]
[348086475,1736300855264,-500.0,0.00025984,10]
[348086476,1736300855285,-500.0,0.00025984,10]
[348086477,1736300855305,-500.0,0.00025984,10]
[348086478,1736300855327,-500.0,0.00025984,10]
[348086479,1736300855355,-500.0,0.00025984,10]
[348086480,1736300855377,-605.23194031,0.00025984,10]
[348086481,1736300855398,-1900.0,0.00025984,10]
[348086482,1736300855419,-1900.0,0.00025984,10]
[348086483,1736300855440,-1900.0,0.00025984,10]
[348086484,1736300855460,-1900.0,0.00025984,10]
[348086485,1736300855483,-1900.0,0.00025984,10]
[348086486,1736300855504,-1900.0,0.00025984,10]
[348086487,1736300855525,-1900.0,0.00025984,10]
[348086488,1736300855545,-1900.0,0.00025984,10]
[348086489,1736300855567,-1900.0,0.00025984,10]
[348086490,1736300855594,-1900.0,0.00025984,10]
[348086491,1736300855615,-1900.0,0.00025984,10]
[348086492,1736300855636,-1900.0,0.00025984,10]
[348086493,1736300855661,-1900.0,0.00025984,10]
[348086494,1736300855681,-1900.0,0.00025984,10]
[348086495,1736300855701,-1900.0,0.00025984,10]
[348086496,1736300855721,-1900.0,0.00025984,10]
[348086497,1736300855742,-1900.0,0.00025984,10]
[348086498,1736300855761,-1900.0,0.00025984,10]
[348086499,1736300855781,-1900.0,0.00025984,10]
[348086500,1736300855801,-1900.0,0.00025984,10]
[348086501,1736300855821,-1900.0,0.00025984,10]
[348086502,1736300855850,-1900.0,0.00025984,10]
[348086503,1736300855870,-2738.47287831,0.00025984,10]
[348086504,1736300855891,-1900.0,0.00025984,10]
[348086505,1736300855911,-1900.0,0.00025984,10]
[348086506,1736300855932,-1900.0,0.00025984,10]
[348086507,1736300855952,-1900.0,0.00025984,10]
[348086508,1736300855972,-2794.75281681,0.00025984,10]
[348086509,1736300855993,-48894.1511485,0.00026,7]
[348086510,1736300856013,-513.08154579,0.00026,2]
[348086511,1736300856034,-17329.93283102,0.00026,2]
[348086858,1736301036180,-500.0,0.00020546,3]
[348086859,1736301036191,-500.0,0.0002082,3]
[348086860,1736301036200,-268.75745562,0.0002082,3]
[348086861,1736301036209,-500.0,0.00021094,3]
[348086862,1736301036219,-545.22,0.000212,2]
[348086863,1736301036229,-500.0,0.00021368,3]
[348086864,1736301036238,-500.0,0.00021642,3]
[348086865,1736301036247,-500.0,0.00021916,3]
[348086866,1736301036258,-500.0,0.0002219,3]
[348086867,1736301036267,-573.2483,0.00022464,3]
[348086868,1736301036277,-218.23723615,0.00022973,2]
[348086869,1736301036287,-300.0,0.00022983,2]
[348086870,1736301036296,-2017.50887757,0.00022984,3]
[348086871,1736301036305,-157.64,0.00022984,2]
[348086872,1736301036314,-8163.92763065,0.00022984,10]
[348086892,1736301038271,-10102.06034821,0.00022984,10]
[348086912,1736301038447,-484.985,0.00022984,10]
[348086914,1736301038459,-114032.8674736,0.00022984,10]
[348087031,1736301039569,-84783.864074,0.00022984,10]
[348087214,1736301042198,-82777.3041722,0.00022984,10]
[348087215,1736301042243,-134084.43723,0.00022984,10]
[348087216,1736301042259,-1981.0602,0.00022984,10]
[348087260,1736301043425,-2000.0,0.00022984,10]
[348087262,1736301043437,-13223.67189,0.00022984,10]
[348087265,1736301043448,-165738.27619,0.00022984,10]
[348087333,1736301046288,-394.0,0.0002234,2]
[348087335,1736301046297,-14878.385637,0.00022984,10]
[348087337,1736301046308,-22586.73127,0.00022984,10]
[348087687,1736301239451,163.069165,0.00013973,2]
[348087689,1736302062231,464.0,0.00025,120]
[348087705,1736302232581,-193.45394313,0.0002082,3]
[348087706,1736302232591,-503.99492953,0.0002082,3]
[348087708,1736302232600,-502.60777954,0.0002082,3]
[348087710,1736302232610,-1251.94107985,0.00021652,2]
[348087767,1736302238527,-1484.05892015,0.00021652,2]
[348087770,1736302238536,-490.69,0.000219,2]
[348087773,1736302238546,-411.4715816,0.00021917,3]
[348087776,1736302238556,-313.90226412,0.000229,2]
[348087779,1736302238565,-578.5562016,0.00022947,2]
[348087782,1736302238574,-300.0,0.00022981,2]
[348087784,1736302238583,-500.0,0.00022982,3]
[348087786,1736302238592,-504.03216855,0.00022982,3]
[348087788,1736302238602,-503.55601877,0.00022982,3]
[348087790,1736302238611,-518.84056997,0.00022982,3]
[348087792,1736302238621,-526.36591694,0.00022982,3]
[348087794,1736302238630,-523.97895057,0.00022982,3]
[348087796,1736302238640,-514.69352279,0.00022982,3]
[348087798,1736302238650,-513.02970418,0.00022982,3]
[348087800,1736302238660,-515.14511311,0.00022982,3]
[348087802,1736302238670,-216.32038287,0.00022982,3]
[348087804,1736302238679,-500.0,0.00022982,3]
[348087806,1736302238689,-523.45827303,0.00022982,3]
[348087808,1736302238699,-515.94489984,0.00022982,3]
[348087809,1736302238709,-500.0,0.00022982,3]
[348087810,1736302238718,-517.68604139,0.00022982,3]
[348087811,1736302238727,-509.55777234,0.00022982,3]
[348087812,1736302238741,-518.01254791,0.00022982,3]
[348087814,1736302238751,-500.0,0.00022982,3]
[348087816,1736302238760,-515.26264991,0.00022982,3]
[348087818,1736302238769,-513.96742283,0.00022982,3]
[348087820,1736302238780,-510.2844119,0.00022982,3]
[348087822,1736302238789,-517.93571564,0.00022982,3]
[348087824,1736302238798,-505.15359488,0.00022982,3]
[348087825,1736302238807,-500.0,0.00022982,3]
[348087827,1736302238816,-505.83177727,0.00022982,3]
[348087829,1736302238826,-515.22108745,0.00022982,3]
[348087831,1736302238835,-533.87400301,0.00022982,3]
[348087833,1736302238844,-514.82180264,0.00022982,3]
[348087835,1736302238853,-500.0,0.00022982,3]
[348087838,1736302238866,-526.81114954,0.00022982,3]
[348087840,1736302238875,-511.69377354,0.00022982,3]
[348087842,1736302238884,-542.96934489,0.00022982,3]
[348087844,1736302238893,-520.81205981,0.00022982,3]
[348087846,1736302238902,-500.0,0.00022982,3]
[348087848,1736302238911,-530.48182227,0.00022982,3]
[348087850,1736302238921,-576.19390616,0.00022982,3]
[348087852,1736302238931,-538.3961275,0.00022982,3]
[348087854,1736302238940,-544.32486607,0.00022982,3]
[348087856,1736302238951,-506.36630883,0.00022982,3]
[348087858,1736302238961,-533.3897521,0.00022982,3]
[348087860,1736302238970,-177.85127446,0.00022982,3]
[348087862,1736302238980,-522.64942995,0.00022982,3]
[348087864,1736302238990,-500.0,0.00022982,3]
[348087866,1736302239002,-516.06001369,0.00022983,3]
[348087868,1736302239011,-5127.60144664,0.00022983,3]
[348087871,1736302239020,-512.38727224,0.00022983,3]
[348087872,1736302239029,-509.84770316,0.00022983,3]
[348087874,1736302239039,-151.962569,0.00022984,7]
[348087877,1736302239048,-254.16100658,0.00022997,2]
[348087878,1736302239057,-500.0,0.00022997,2]
[348087880,1736302239067,-500.0,0.00022997,2]
[348087883,1736302239076,-500.0,0.00022997,2]
[348087884,1736302239086,-500.0,0.00022997,2]
[348087886,1736302239095,-257.69934791,0.00022997,2]
[348087888,1736302239104,-153.839836,0.00022998,7]
[348087890,1736302239113,-172.48843625,0.00022998,2]
[348087893,1736302239123,-1008.75443879,0.00022998,3]
[348087895,1736302239132,-67635.47347873,0.00022998,10]
[348087897,1736302239144,-7986.05032928,0.00022998,10]
[348087979,1736302243548,-3277.2608415,0.00022998,10]
[348087980,1736302243767,-660.9536614,0.00022998,10]
[348087981,1736302243779,-250.61398885,0.00022998,10]
[348088003,1736302385027,163.0182,0.00013973,2]
[348088015,1736303352150,-2468.6592,0.00018,2]
[348088016,1736303357245,-441.4214,0.00018,2]
[348088017,1736303429266,0.86663096,0.00013973,2]
[348088018,1736303429308,162.09961704,0.00013973,2]
[348088102,1736303433185,-37.44749558,0.00018,2]
[348088104,1736303433196,-156.98153829,0.0002138,2]
[348088106,1736303433208,-496.15,0.000219,2]
[348088108,1736303433219,-1125.5515004,0.00021976,2]
[348088142,1736303438793,-105.1006569,0.00021976,2]
[348088143,1736303438804,-160.0,0.00022,15]
[348088144,1736303438814,-1792.63807238,0.00022,2]
[348088153,1736303438986,-178.0,0.00022,2]
[348088154,1736303438996,-300.0,0.00022299,2]
[348088155,1736303439005,-3856.0,0.00022299,2]
[348088156,1736303439015,-2115.9699,0.000223,3]
[348088157,1736303439025,-394.0,0.00022342,2]
[348088158,1736303439034,-4749.70498173,0.0002253,2]
[348088159,1736303439044,-878.25438344,0.00022706,2]
[348088160,1736303439054,-744.80966764,0.000229,2]
[348088161,1736303439063,-157.64,0.00022981,2]
[348088162,1736303439073,-339.24356845,0.00022996,3]
[348088163,1736303439083,-437.50573809,0.00022996,3]
[348088164,1736303439092,-500.0,0.00022996,3]
[348088165,1736303439101,-500.0,0.00022996,3]
[348088166,1736303439112,-500.0,0.00022996,2]
[348088167,1736303439121,-500.0,0.00022997,3]
[348088168,1736303439132,-511.31140957,0.00022997,3]
[348088169,1736303439142,-523.03900173,0.00022997,3]
[348088170,1736303439153,-500.0,0.00022997,3]
[348088171,1736303439163,-500.0,0.00022997,3]
[348088172,1736303439173,-500.0,0.00022997,3]
[348088173,1736303439183,-268.75745562,0.00022997,3]
[348088174,1736303439194,-500.0,0.00022997,3]
[348088175,1736303439204,-177.91270461,0.00022999,2]
[348088176,1736303439217,-343.67958064,0.00022999,2]
[348088177,1736303439227,-500.0,0.00022999,2]
[348088178,1736303439236,-500.0,0.00022999,2]
[348088179,1736303439245,-643.7418877,0.00022999,2]
[348088180,1736303439255,-551.80941694,0.00022999,2]
[348088181,1736303439264,-500.0,0.00022999,2]
[348088182,1736303439274,-329.27160728,0.00022999,2]
[348088183,1736303439283,-500.0,0.00022999,2]
[348088184,1736303439292,-500.0,0.00022999,2]
[348088185,1736303439302,-500.0,0.00022999,2]
[348088186,1736303439311,-500.0,0.00022999,2]
[348088187,1736303439320,-500.0,0.00022999,2]
[348088188,1736303439329,-500.0,0.00022999,2]
[348088189,1736303439339,-546.98852332,0.00022999,2]
[348088190,1736303439348,-500.0,0.00022999,2]
[348088191,1736303439358,-500.0,0.00022999,2]
[348088192,1736303439367,-500.0,0.00022999,2]
[348088193,1736303439377,-500.0,0.00022999,2]
[348088194,1736303439386,-500.0,0.00022999,2]
[348088195,1736303439396,-500.0,0.00022999,2]
[348088196,1736303439405,-500.0,0.00022999,2]
[348088197,1736303439415,-7873.0665461,0.00023,3]
[348088198,1736303439425,-773.37352744,0.00023,3]
[348088199,1736303439435,-60001.44521745,0.00023,10]
[348088200,1736303439489,-37032.4231425,0.00023,10]
[348088255,1736303447123,-446.53,0.000219,2]
[348088256,1736303447133,-542.44764371,0.00022996,3]
[348088257,1736303447142,-491.6594095,0.00023,10]
[348088261,1736303494762,345.2320992,0.00025,120]
[348088273,1736304364226,162.915103,0.00013973,2]
[348088274,1736304445752,186.47713105,0.00025,120]
[348088276,1736304553227,-164.3116684,0.00020683,2]
[348088277,1736304553249,-164.3116684,0.00020892,2]
[348088278,1736304553272,-164.3116684,0.00021531,2]
[348088279,1736304553293,-401.88,0.000219,2]
[348088280,1736304553314,-5164.75756255,0.00021921,2]
[348088281,1736304553335,-178.0,0.00022,2]
[348088282,1736304553356,-208.24887022,0.00022343,2]
[348088283,1736304574171,-185.75112978,0.00021899,2]
[348088284,1736304574194,-185.75112978,0.0002212,2]
[348088285,1736304574216,-185.75112978,0.00022343,2]
[348088286,1736304574238,-4773.1215418,0.00022511,2]
[348088287,1736304574259,-186.0,0.000228,7]
[348088288,1736304574281,-186.0,0.000228,8]
[348088289,1736304574303,-157.59,0.000228,2]
[348088290,1736304574324,-801.32284226,0.00022805,2]
[348088291,1736304574346,-550.32181226,0.000229,2]
[348088292,1736304574368,-1846.89069144,0.00022978,2]
[348088293,1736304574390,-157.73812858,0.00022995,3]
[348088294,1736304574412,-500.0,0.00022995,2]
[348088295,1736304574435,-500.0,0.00022995,3]
[348088296,1736304574457,-408.9222429,0.00022996,3]
[348088297,1736304574479,-500.0,0.00022996,3]
[348088298,1736304574500,-517.06402965,0.00022996,5]
[348088299,1736304574522,-500.0,0.00022996,3]
[348088300,1736304574550,-500.0,0.00022997,3]
[348088301,1736304574571,-172.38113171,0.00022999,2]
[348088302,1736304574595,-465.58254179,0.00022999,2]
[348088303,1736304574618,-500.0,0.00022999,2]
[348088304,1736304574640,-180.712,0.00022999,2]
[348088305,1736304574665,-500.0,0.00022999,3]
[348088306,1736304574685,-1814.96,0.00023,14]
[348088307,1736304574708,-5562.79,0.00023,14]
[348088308,1736304574728,-4808.47,0.00023,2]
[348088309,1736304574748,-152.033969,0.00023,7]
[348088310,1736304574768,-153.875076,0.00023,7]
[348088311,1736304574791,-155.894687,0.00023,7]
[348088312,1736304574811,-151.0,0.00023,7]
[348088313,1736304574833,-174.539476,0.00023,7]
[348088314,1736304574854,-159.10002,0.00023,7]
[348088315,1736304574875,-151.0,0.00023,7]
[348088316,1736304574897,-151.0,0.00023,7]
[348088317,1736304574920,-151.0,0.00023,7]
[348088318,1736304574944,-253.490352,0.00023,7]
[348088319,1736304574972,-153.5,0.00023,31]
[348088320,1736304574995,-153.5,0.00023,31]
[348088321,1736304575018,-153.5,0.00023,31]
[348088322,1736304575047,-151.0,0.00023,7]
[348088323,1736304575068,-169.213171,0.00023,7]
[348088324,1736304575090,-151.0,0.00023,7]
[348088325,1736304575110,-209.73011,0.00023,7]
[348088326,1736304575131,-164.264156,0.00023,7]
[348088327,1736304575152,-154.788871,0.00023,7]
[348088328,1736304575172,-151.0,0.00023,7]
[348088329,1736304575195,-7116.50071701,0.00023,3]
[348088330,1736304575217,-773.37352745,0.00023,3]
[348088331,1736304575253,-178.0,0.00023014,2]
[348088332,1736304575274,-502.71729984,0.00023073,2]
[348088333,1736304575296,-240.38079907,0.00023269,2]
[348088334,1736304575319,-500.0,0.00023269,3]
[348088335,1736304575340,-500.0,0.0002327,3]
[348088336,1736304575362,-500.0,0.0002327,3]
[348088337,1736304575385,-500.0,0.00023271,3]
[348088338,1736304575407,-500.0,0.00023273,3]
[348088339,1736304575428,-1200.0,0.00023282,2]
[348088340,1736304575451,-471.27225879,0.00023384,4]
[348088830,1736305282798,162.863976,0.00013973,2]
[348088831,1736305631152,-662.54050483,0.000189,2]
[348088832,1736305631175,-125.30470655,0.00018968,2]
[348088833,1736305750495,-158.66486959,0.00020127,2]
[348088834,1736305750518,-1204.97401979,0.0002033,2]
[348088835,1736305750545,-2278.0,0.00020536,2]
[348088836,1736305750567,-394.0,0.00021471,2]
[348088837,1736305750588,-189.5501402,0.00021605,2]
[348088838,1736305750612,-1061.6477187,0.00021725,2]
[348088839,1736305750635,-164.3278761,0.00021816,2]
[348088840,1736305750657,-180.0,0.00022,2]
[348088841,1736305750679,-361.69,0.000221,2]
[348088842,1736305750701,-1895.69260502,0.00022179,4]
[348088843,1736305759167,-382.30739498,0.00022179,4]
[348088844,1736305759190,-300.0,0.00022899,2]
[348088845,1736305759214,-8900.38944675,0.000229,2]
[348088846,1736305759236,-500.0,0.00022972,3]
[348088847,1736305759258,-500.0,0.00022972,3]
[348088848,1736305759280,-506.58880883,0.00022973,2]
[348088849,1736305759304,-501.76048107,0.00022973,2]
[348088850,1736305759325,-501.97044791,0.00022973,2]
[348088851,1736305759347,-218.23723615,0.00022973,2]
[348088852,1736305759372,-500.0,0.00022996,3]
[348088853,1736305759393,-518.13510985,0.00022997,2]
[348088854,1736305759418,-245.20568542,0.00022999,2]
[348088855,1736305759439,-180.73545633,0.00022999,2]
[348088856,1736305759467,-500.0,0.00022999,2]
[348088857,1736305759491,-394.10983592,0.00022999,2]
[348088858,1736305759513,-339.51621921,0.00022999,2]
[348088859,1736305759534,-500.0,0.00022999,3]
[348088860,1736305759558,-386.68676372,0.00022999,3]
[348088861,1736305759580,-3558.2503585,0.00022999,3]
[348088862,1736305759616,-155.266417,0.00023,7]
[348088863,1736305759638,-153.103228,0.00023,7]
[348088864,1736305759659,-151.0,0.00023,7]
[348088865,1736305759681,-156.154004,0.00023,7]
[348088866,1736305759702,-4004.07,0.00023,3]
[348088867,1736305759727,-153.54,0.00023,31]
[348088868,1736305759750,-153.54,0.00023,31]
[348088869,1736305759776,-153.54,0.00023,31]
[348088870,1736305759803,-153.54,0.00023,31]
[348088871,1736305759827,-153.54,0.00023,31]
[348088872,1736305759852,-153.54,0.00023,31]
[348088873,1736305759876,-153.54,0.00023,31]
[348088874,1736305759897,-500.0,0.00023,3]
[348088875,1736305759919,-5707.29558905,0.00023,3]
[348088876,1736305759941,-151.0,0.00023,7]
[348088877,1736305759963,-500.0,0.00023,3]
[348088878,1736305759984,-500.0,0.00023,5]
[348088879,1736305760005,-178.61,0.00023,2]
[348088880,1736305760028,-250.0,0.0002308,2]
[348088881,1736305760052,-5006.51,0.000231,14]
[348088882,1736305760078,-4808.47,0.000231,2]
[348088883,1736305760099,-1633.47,0.000231,14]
[348088884,1736305760121,-646.93607722,0.00023246,3]
[348088885,1736305760142,-500.0,0.00023246,3]
[348088886,1736305760167,-625.04,0.0002327,3]
[348088887,1736305760189,-500.0,0.00023273,3]
[348088888,1736305760211,-500.0,0.00023274,3]
[348088889,1736305760233,-500.0,0.00023274,3]
[348088890,1736305760255,-1200.0,0.00023308,2]
[348088891,1736305760276,-1965.77811959,0.00023386,2]
[348088968,1736305832403,-504.32939025,0.00021146,2]
[348088970,1736305832416,-517.9320499,0.00021146,2]
[348088972,1736305832428,-317.26438842,0.000229,2]
[348088974,1736305832441,-1779.12517926,0.00022999,3]
[348088976,1736305832451,-193.34338187,0.00022999,3]
[348088978,1736305832461,-29884.7372312,0.00022999,10]
[348089567,1736305838416,-7930.08921781,0.00022999,10]
[348089750,1736305840097,-394.0,0.00022412,2]
[348089752,1736305840107,-195799.33908973,0.00022999,10]
[348090102,1736305843475,-1049.9999992,0.00022999,10]
[348090411,1736305846196,-249.75125,0.00022999,10]
[348090413,1736305846208,-20894.95404375,0.00022999,10]
[348091571,1736306193662,162.825874,0.00013973,2]
[348091573,1736306836146,-271.39206247,0.00020899,2]
[348091574,1736306838150,-1011.87103158,0.00020899,2]
[348091590,1736306952111,-294.00532692,0.00020899,2]
[348091591,1736306952134,-160.4340897,0.0002164,2]
[348091592,1736306952155,-163.110871,0.00021725,2]
[348091593,1736306952179,-1018.0770125,0.00021998,2]
[348091594,1736306952201,-730.074,0.0002222,2]
[348091595,1736306952223,-192.57595389,0.00022412,2]
[348091596,1736306962104,-283.438283,0.00021998,2]
[348091597,1736306962125,-201.42404611,0.00022412,2]
[348091598,1736306962148,-500.0,0.00022995,3]
[348091599,1736306962171,-500.0,0.00022998,3]
[348091600,1736306962192,-300.0,0.00022998,2]
[348091601,1736306962216,-889.56258963,0.00022998,3]
[348091602,1736306962238,-193.34338185,0.00022998,3]
[348091603,1736306962259,-171.6439798,0.00022998,2]
[348091604,1736306962293,-500.0,0.00022999,3]
[348091605,1736306962314,-500.0,0.00022999,5]
[348091606,1736306962336,-151.0,0.00022999,7]
[348091607,1736306962357,-500.0,0.00022999,3]
[348091608,1736306962378,-500.0,0.00022999,3]
[348091609,1736306962400,-500.0,0.00022999,3]
[348091610,1736306962421,-157.59,0.00022999,2]
[348091611,1736306962443,-1470.12,0.00023,14]
[348091612,1736306962465,-325.52,0.00023,2]
[348091613,1736306962487,-4622.21953605,0.00023,3]
[348091614,1736306962510,-4505.86,0.00023,14]
[348091615,1736306962534,-3846.77,0.00023,2]
[348091616,1736306962562,-153.4,0.00023,31]
[348091617,1736306962587,-500.0,0.00023269,3]
[348091618,1736306962612,-500.0,0.00023272,3]
[348091619,1736306962635,-415.75610131,0.00023273,3]
[348091620,1736306962656,-411.23492835,0.00023273,3]
[348091621,1736306962679,-567.31570107,0.00023273,3]
[348091622,1736306962704,-164.10714724,0.00023273,3]
[348091623,1736306962725,-1200.0,0.00023345,2]
[348091624,1736306964804,1000.0,0.00025,120]
[348091625,1736306964922,444.78129481,0.00022998,3]
[348091626,1736306974017,2157.394,0.00023345,2]
[348091627,1736306986962,1000.0,0.00025,120]
[348091628,1736306991038,4055.27,0.00023,14]
[348091629,1736306995599,500.0,0.00022999,3]
[348091630,1736306997285,335.59,0.00023273,3]
[348091631,1736307003309,300.0,0.00022998,2]
[348091632,1736307016761,1359.78194041,0.00021245,2]
[348091872,1736307038724,-107065.24599136,0.00022999,10]
[348092841,1736307048698,3846.77,0.00023,2]
[348093401,1736307060663,736.24,0.00022998,3]
[348093402,1736307061232,162.799242,0.00013973,2]
[348093403,1736307061798,736.24,0.00022998,3]
[348093404,1736307062295,300.0,0.00022998,2]
[348093405,1736307063479,736.24,0.00022998,3]
[348093406,1736307063701,5544.0,0.00022998,2]
[348093407,1736307064431,736.24,0.00022998,3]
[348093408,1736307066433,736.24,0.00022998,3]
[348093409,1736307067912,736.24,0.00022998,3]
[348093410,1736307068679,736.24,0.00022998,3]